[Event "Live Chess"]
[Site "Chess.com"]
[Date "2024.06.01"]
[Round "-"]
[White "CheckThis4"]
[Black "EdenHazard8"]
[Result "1-0"]
[WhiteElo "2693"]
[BlackElo "2178"]
[TimeControl "300"]
[EndTime "9:36:56 PDT"]
[Termination "CheckThis4 won by resignation"]

1. e4 {[%clk 0:04:56.4]} 1... e5 {[%clk 0:04:57.5]} 2. Nf3 {[%clk 0:04:52.9]}
2... Nc6 {[%clk 0:04:56.5]} 3. Bb5 {[%clk 0:04:49.4]} 3... Nge7 {[%clk
0:04:40.8]} 4. O-O {[%clk 0:04:44.1]} 4... g6 {[%clk 0:04:37.1]} 5. d4 {[%clk
0:04:40.9]} 5... exd4 {[%clk 0:04:35.3]} 6. Bg5 {[%clk 0:04:38.7]} 6... Bg7
{[%clk 0:04:33]} 7. c3 {[%clk 0:04:34.3]} 7... dxc3 {[%clk 0:04:29.8]} 8. Nxc3
{[%clk 0:04:32.9]} 8... h6 {[%clk 0:04:28]} 9. Bh4 {[%clk 0:04:28.9]} 9... g5
{[%clk 0:04:26.5]} 10. Bg3 {[%clk 0:04:27.9]} 10... d6 {[%clk 0:04:25.1]} 11.
Nd5 {[%clk 0:04:23.6]} 11... O-O {[%clk 0:04:13.2]} 12. Rc1 {[%clk 0:04:17.9]}
12... f5 {[%clk 0:04:03.3]} 13. exf5 {[%clk 0:04:07.1]} 13... Nxf5 {[%clk
0:04:01]} 14. Re1 {[%clk 0:03:46.4]} 14... Nxg3 {[%clk 0:03:46.5]} 15. hxg3
{[%clk 0:03:42.1]} 15... Bg4 {[%clk 0:03:43.5]} 16. Bxc6 {[%clk 0:03:26.5]}
16... bxc6 {[%clk 0:03:37.3]} 17. Rxc6 {[%clk 0:03:25.2]} 17... Rf7 {[%clk
0:03:23.4]} 18. Qb3 {[%clk 0:03:11.6]} 18... Rb8 {[%clk 0:03:20.1]} 19. Qc4
{[%clk 0:03:09.9]} 19... Bxf3 {[%clk 0:02:55.5]} 20. gxf3 {[%clk 0:03:00.1]}
20... Kh8 {[%clk 0:02:50.8]} 21. Nxc7 {[%clk 0:02:35.8]} 21... Re7 {[%clk
0:02:38.3]} 22. Ne6 {[%clk 0:02:24]} 22... Qe8 {[%clk 0:02:32.3]} 23. Rxd6
{[%clk 0:02:13.6]} 23... Rxb2 {[%clk 0:02:21.2]} 24. Re4 {[%clk 0:02:06.4]}
24... Rb8 {[%clk 0:02:09.6]} 25. Nxg7 {[%clk 0:01:57.7]} 25... Kxg7 {[%clk
0:02:03.9]} 26. Qd4+ {[%clk 0:01:53.1]} 26... Kg8 {[%clk 0:01:50.7]} 27. Rxh6
{[%clk 0:01:44.4]} 27... Rxe4 {[%clk 0:01:42.7]} 28. fxe4 {[%clk 0:01:25.5]} 1-0

[Event "Live Chess"]
[Site "Chess.com"]
[Date "2024.06.01"]
[Round "-"]
[White "grillage"]
[Black "Hazban"]
[Result "0-1"]
[WhiteElo "1910"]
[BlackElo "2044"]
[TimeControl "300"]
[EndTime "9:37:24 PDT"]
[Termination "Hazban won by resignation"]

1. d4 {[%clk 0:04:56.9]} 1... Nf6 {[%clk 0:04:59]} 2. Nf3 {[%clk 0:04:54.8]}
2... d5 {[%clk 0:04:57.8]} 3. c4 {[%clk 0:04:53.1]} 3... c6 {[%clk 0:04:56]} 4.
Qc2 {[%clk 0:04:51.5]} 4... a6 {[%clk 0:04:54.8]} 5. Bg5 {[%clk 0:04:41]} 5...
g6 {[%clk 0:04:53.6]} 6. e3 {[%clk 0:04:38.3]} 6... Bf5 {[%clk 0:04:52.4]} 7.
Qb3 {[%clk 0:04:35.1]} 7... Bc8 {[%clk 0:04:46.1]} 8. Nc3 {[%clk 0:04:29]} 8...
dxc4 {[%clk 0:04:44.5]} 9. Bxc4 {[%clk 0:04:27.2]} 9... e6 {[%clk 0:04:43.4]}
10. O-O {[%clk 0:04:21.1]} 10... Bg7 {[%clk 0:04:42.1]} 11. e4 {[%clk
0:04:17.7]} 11... Qa5 {[%clk 0:04:37.8]} 12. e5 {[%clk 0:04:04.7]} 12... Nd5
{[%clk 0:04:36.6]} 13. Ne4 {[%clk 0:03:57.3]} 13... O-O {[%clk 0:04:28.9]} 14.
Nd6 {[%clk 0:03:48.5]} 14... Nd7 {[%clk 0:04:18]} 15. Bxd5 {[%clk 0:03:45.1]}
15... Qxd5 {[%clk 0:04:12.2]} 16. Qxd5 {[%clk 0:03:43.1]} 16... cxd5 {[%clk
0:04:10.7]} 17. Be7 {[%clk 0:03:41.8]} 17... Nb6 {[%clk 0:04:06.3]} 18. Bxf8
{[%clk 0:03:39.7]} 18... Bxf8 {[%clk 0:04:05.5]} 19. Nxc8 {[%clk 0:03:23.9]}
19... Rxc8 {[%clk 0:04:04.2]} 20. Rac1 {[%clk 0:03:23.5]} 20... Rb8 {[%clk
0:03:54.5]} 21. b3 {[%clk 0:03:20]} 21... Ba3 {[%clk 0:03:47.4]} 22. Rc7 {[%clk
0:03:18.5]} 22... Na8 {[%clk 0:03:41.3]} 23. Rc2 {[%clk 0:03:10.4]} 23... Nb6
{[%clk 0:03:37.7]} 24. Rd1 {[%clk 0:03:02.4]} 24... h6 {[%clk 0:03:36.2]} 25. h3
{[%clk 0:03:01.2]} 25... Kf8 {[%clk 0:03:25.3]} 26. Rd3 {[%clk 0:03:00.1]} 26...
Bb4 {[%clk 0:03:20.9]} 27. a3 {[%clk 0:02:42.1]} 27... Bxa3 {[%clk 0:03:19.2]}
28. Rdc3 {[%clk 0:02:41.6]} 28... Bb4 {[%clk 0:03:15.5]} 29. Rc7 {[%clk
0:02:39.1]} 29... a5 {[%clk 0:02:58]} 30. Nh2 {[%clk 0:02:30.1]} 30... a4 {[%clk
0:02:56.4]} 31. bxa4 {[%clk 0:02:27.3]} 31... Nc4 {[%clk 0:02:55.2]} 32. Ng4
{[%clk 0:02:18.2]} 32... Ba5 {[%clk 0:02:33.4]} 33. Rc5 {[%clk 0:02:07.5]} 33...
b6 {[%clk 0:02:24.5]} 34. Rb5 {[%clk 0:02:06.6]} 34... Na3 {[%clk 0:02:21.8]}
35. Rcb2 {[%clk 0:01:55.7]} 35... Nxb5 {[%clk 0:02:18.8]} 36. Rxb5 {[%clk
0:01:54.5]} 36... h5 {[%clk 0:02:15.3]} 37. Nf6 {[%clk 0:01:53.2]} 37... Ke7
{[%clk 0:02:12.5]} 38. g4 {[%clk 0:01:49.3]} 38... Bc3 {[%clk 0:02:08.6]} 39.
gxh5 {[%clk 0:01:45.5]} 39... gxh5 {[%clk 0:02:06.7]} 40. Nxh5 {[%clk
0:01:43.2]} 40... Bxd4 {[%clk 0:02:02.8]} 41. Kg2 {[%clk 0:01:33.7]} 41... Rh8
{[%clk 0:02:00.8]} 42. Ng3 {[%clk 0:01:22.9]} 42... Ra8 {[%clk 0:01:55.9]} 43.
a5 {[%clk 0:01:19.4]} 43... Rxa5 {[%clk 0:01:52.9]} 44. Rxa5 {[%clk 0:01:18.5]}
44... bxa5 {[%clk 0:01:52.1]} 45. h4 {[%clk 0:01:18.1]} 45... a4 {[%clk
0:01:49.1]} 46. Nf1 {[%clk 0:01:15.8]} 46... a3 {[%clk 0:01:45.3]} 47. Nd2
{[%clk 0:01:14.3]} 47... a2 {[%clk 0:01:43]} 48. Nb3 {[%clk 0:01:13.6]} 48...
Bxe5 {[%clk 0:01:41.8]} 49. Kf3 {[%clk 0:01:10.9]} 49... a1=Q {[%clk 0:01:40.1]}
50. Nxa1 {[%clk 0:01:09.4]} 50... Bxa1 {[%clk 0:01:39.2]} 51. Kg4 {[%clk
0:01:08.6]} 51... Bf6 {[%clk 0:01:36.2]} 0-1

[Event "Live Chess"]
[Site "Chess.com"]
[Date "2024.06.01"]
[Round "-"]
[White "A3ndrey9"]
[Black "Tushinskiy"]
[Result "0-1"]
[WhiteElo "1277"]
[BlackElo "2230"]
[TimeControl "300"]
[EndTime "9:37:25 PDT"]
[Termination "Tushinskiy won on time"]

1. Nf3 {[%clk 0:04:58.6]} 1... d5 {[%clk 0:04:57.5]} 2. d4 {[%clk 0:04:57.5]}
2... c6 {[%clk 0:04:57.4]} 3. g3 {[%clk 0:04:53.3]} 3... Nf6 {[%clk 0:04:53.2]}
4. Bg2 {[%clk 0:04:52.6]} 4... Bg4 {[%clk 0:04:52.6]} 5. O-O {[%clk 0:04:50.7]}
5... Bh5 {[%clk 0:04:52.5]} 6. Bf4 {[%clk 0:04:47.4]} 6... Nbd7 {[%clk
0:04:52.4]} 7. Ne5 {[%clk 0:04:45.4]} 7... e6 {[%clk 0:04:51.2]} 8. Nxd7 {[%clk
0:04:38.3]} 8... Qxd7 {[%clk 0:04:49]} 9. Nd2 {[%clk 0:04:37.5]} 9... Bd6 {[%clk
0:04:47.4]} 10. Bg5 {[%clk 0:04:32.7]} 10... Be7 {[%clk 0:04:45.7]} 11. c4
{[%clk 0:04:27.7]} 11... dxc4 {[%clk 0:04:43.8]} 12. Nxc4 {[%clk 0:04:26.5]}
12... O-O {[%clk 0:04:42.5]} 13. Ne5 {[%clk 0:04:22.1]} 13... Qc7 {[%clk
0:04:41.5]} 14. Qc2 {[%clk 0:04:07.8]} 14... Rad8 {[%clk 0:04:39.8]} 15. e3
{[%clk 0:03:58.9]} 15... Nd5 {[%clk 0:04:33.6]} 16. Bxe7 {[%clk 0:03:51.5]}
16... Qxe7 {[%clk 0:04:31.7]} 17. Nf3 {[%clk 0:03:38]} 17... Bg6 {[%clk
0:04:26]} 18. Qd2 {[%clk 0:03:27.7]} 18... Nb6 {[%clk 0:04:23.7]} 19. b3 {[%clk
0:03:24.5]} 19... e5 {[%clk 0:04:21.1]} 20. Nxe5 {[%clk 0:03:20.5]} 20... Qxe5
{[%clk 0:04:19.4]} 21. dxe5 {[%clk 0:02:54.2]} 21... Rxd2 {[%clk 0:04:18]} 22.
Rfd1 {[%clk 0:02:48.7]} 22... Rfd8 {[%clk 0:04:16.7]} 23. Bf3 {[%clk 0:02:38.1]}
23... Kf8 {[%clk 0:04:14.5]} 24. h4 {[%clk 0:02:26.7]} 24... Rxd1+ {[%clk
0:04:12.8]} 25. Rxd1 {[%clk 0:02:24.9]} 25... Rxd1+ {[%clk 0:04:11.3]} 26. Bxd1
{[%clk 0:02:24]} 26... Bb1 {[%clk 0:04:10.6]} 27. a4 {[%clk 0:02:20.9]} 27...
Ke7 {[%clk 0:04:08.9]} 28. f4 {[%clk 0:02:18.8]} 28... Nd5 {[%clk 0:04:00.8]}
29. Kf2 {[%clk 0:02:04.6]} 29... Nc3 {[%clk 0:03:59.3]} 30. Be2 {[%clk
0:01:48.7]} 30... Nxe2 {[%clk 0:03:55.9]} 31. Kxe2 {[%clk 0:01:47.8]} 31... Bc2
{[%clk 0:03:55.1]} 32. b4 {[%clk 0:01:41.7]} 32... Bxa4 {[%clk 0:03:54.3]} 33.
Kd3 {[%clk 0:01:41.3]} 33... Bb5+ {[%clk 0:03:51.1]} 34. Kd4 {[%clk 0:01:39]}
34... b6 {[%clk 0:03:49.7]} 35. e4 {[%clk 0:01:35.9]} 35... a5 {[%clk
0:03:44.2]} 36. bxa5 {[%clk 0:01:33.4]} 36... bxa5 {[%clk 0:03:43.2]} 37. Kc5
{[%clk 0:01:33.3]} 37... a4 {[%clk 0:03:40.9]} 38. Kb4 {[%clk 0:01:32.7]} 38...
Ke6 {[%clk 0:03:33.2]} 39. g4 {[%clk 0:01:22.5]} 39... Ke7 {[%clk 0:03:18.9]}
40. f5 {[%clk 0:01:08.7]} 40... h6 {[%clk 0:03:09.7]} 41. g5 {[%clk 0:01:04.4]}
41... hxg5 {[%clk 0:03:08.6]} 42. hxg5 {[%clk 0:01:02.1]} 42... g6 {[%clk
0:03:07.8]} 43. e6 {[%clk 0:00:29.7]} 43... gxf5 {[%clk 0:02:51.5]} 44. exf5
{[%clk 0:00:23.6]} 44... fxe6 {[%clk 0:02:50]} 45. fxe6 {[%clk 0:00:10.9]} 45...
Kxe6 {[%clk 0:02:48.2]} 46. g6 {[%clk 0:00:10.1]} 46... Kf6 {[%clk 0:02:46.8]}
47. g7 {[%clk 0:00:09.4]} 47... Kxg7 {[%clk 0:02:46.3]} 48. Ka3 {[%clk
0:00:08.4]} 48... Kf6 {[%clk 0:02:45.3]} 49. Kb4 {[%clk 0:00:07.7]} 49... Ke5
{[%clk 0:02:44.6]} 50. Ka3 {[%clk 0:00:07.3]} 50... Kd4 {[%clk 0:02:43.8]} 51.
Kb4 {[%clk 0:00:07]} 51... Kd3 {[%clk 0:02:42.6]} 52. Ka3 {[%clk 0:00:06]} 52...
Kc3 {[%clk 0:02:41.9]} 53. Ka2 {[%clk 0:00:05]} 53... Kb4 {[%clk 0:02:39.5]} 54.
Kb2 {[%clk 0:00:03.7]} 54... c5 {[%clk 0:02:39.4]} 55. Ka2 {[%clk 0:00:01.3]}
55... c4 {[%clk 0:02:39.3]} 56. Kb2 {[%clk 0:00:00.3]} 56... c3+ {[%clk
0:02:39.2]} 0-1

[Event "Live Chess"]
[Site "Chess.com"]
[Date "2024.06.01"]
[Round "-"]
[White "KGreenGator"]
[Black "Keithdfg"]
[Result "1-0"]
[WhiteElo "1774"]
[BlackElo "1731"]
[TimeControl "300"]
[EndTime "9:37:25 PDT"]
[Termination "KGreenGator won by resignation"]

1. c4 {[%clk 0:04:56.7]} 1... d6 {[%clk 0:04:59.3]} 2. Nc3 {[%clk 0:04:56.1]}
2... e5 {[%clk 0:04:57.8]} 3. d3 {[%clk 0:04:55.1]} 3... Nd7 {[%clk 0:04:55.9]}
4. e4 {[%clk 0:04:53.8]} 4... Ngf6 {[%clk 0:04:54.5]} 5. Nf3 {[%clk 0:04:52.1]}
5... Be7 {[%clk 0:04:54.1]} 6. Be2 {[%clk 0:04:49]} 6... O-O {[%clk 0:04:53.6]}
7. O-O {[%clk 0:04:47.9]} 7... c6 {[%clk 0:04:53.1]} 8. Re1 {[%clk 0:04:46.9]}
8... a6 {[%clk 0:04:52.7]} 9. h3 {[%clk 0:04:46.2]} 9... b5 {[%clk 0:04:52.2]}
10. cxb5 {[%clk 0:04:44.5]} 10... axb5 {[%clk 0:04:51.2]} 11. a3 {[%clk
0:04:42.8]} 11... b4 {[%clk 0:04:49.9]} 12. Nb1 {[%clk 0:04:39.2]} 12... Bb7
{[%clk 0:04:46.4]} 13. b3 {[%clk 0:04:38]} 13... d5 {[%clk 0:04:43.2]} 14. exd5
{[%clk 0:04:34.1]} 14... cxd5 {[%clk 0:04:42.3]} 15. a4 {[%clk 0:04:32.3]} 15...
Bd6 {[%clk 0:04:40.4]} 16. Bd2 {[%clk 0:04:24.1]} 16... Re8 {[%clk 0:04:38.9]}
17. Nh2 {[%clk 0:04:16.3]} 17... e4 {[%clk 0:04:36.9]} 18. dxe4 {[%clk
0:04:14.1]} 18... Nxe4 {[%clk 0:04:36]} 19. Be3 {[%clk 0:04:08.4]} 19... Qf6
{[%clk 0:04:24.8]} 20. Ra2 {[%clk 0:04:06.2]} 20... Rac8 {[%clk 0:03:39]} 21.
Ng4 {[%clk 0:04:03]} 21... Qg6 {[%clk 0:03:35.6]} 22. Bf3 {[%clk 0:03:53.9]}
22... f5 {[%clk 0:03:34.2]} 23. Nh2 {[%clk 0:03:47.2]} 23... Ne5 {[%clk
0:03:28.1]} 24. Nd2 {[%clk 0:03:43.1]} 24... Nc3 {[%clk 0:03:23.7]} 25. Qa1
{[%clk 0:03:38.6]} 25... Nd3 {[%clk 0:02:52.4]} 26. Rf1 {[%clk 0:03:34.8]} 26...
f4 {[%clk 0:02:40.7]} 27. Bd4 {[%clk 0:03:28.4]} 27... Ne2+ {[%clk 0:02:32.5]}
28. Bxe2 {[%clk 0:03:19.1]} 28... Rxe2 {[%clk 0:02:30.8]} 29. Ndf3 {[%clk
0:03:12.3]} 29... Ba6 {[%clk 0:02:21.7]} 30. Rxe2 {[%clk 0:03:08.2]} 1-0

[Event "Live Chess"]
[Site "Chess.com"]
[Date "2024.06.01"]
[Round "-"]
[White "TheSmoulderingMaster"]
[Black "Pedrada88"]
[Result "0-1"]
[WhiteElo "1742"]
[BlackElo "2552"]
[TimeControl "300"]
[EndTime "9:37:29 PDT"]
[Termination "Pedrada88 won by resignation"]

1. e4 {[%clk 0:04:57.3]} 1... e5 {[%clk 0:04:59.1]} 2. Nf3 {[%clk 0:04:53.5]}
2... Nf6 {[%clk 0:04:57.9]} 3. Nxe5 {[%clk 0:04:41.5]} 3... d6 {[%clk
0:04:57.3]} 4. Nf3 {[%clk 0:04:40.3]} 4... Nxe4 {[%clk 0:04:56.6]} 5. Nc3 {[%clk
0:04:38.3]} 5... Nxc3 {[%clk 0:04:55.8]} 6. dxc3 {[%clk 0:04:36]} 6... Be7
{[%clk 0:04:55.7]} 7. Bd3 {[%clk 0:04:34.2]} 7... Nc6 {[%clk 0:04:55]} 8. Bf4
{[%clk 0:04:32.6]} 8... Be6 {[%clk 0:04:53.6]} 9. Qd2 {[%clk 0:04:30.8]} 9...
Qd7 {[%clk 0:04:52.9]} 10. O-O-O {[%clk 0:04:29.7]} 10... O-O-O {[%clk
0:04:52.2]} 11. Bb5 {[%clk 0:04:26.2]} 11... a6 {[%clk 0:04:50.8]} 12. Ba4
{[%clk 0:04:25.1]} 12... Bf6 {[%clk 0:04:48]} 13. Nd4 {[%clk 0:04:20.5]} 13...
b5 {[%clk 0:04:37.1]} 14. Bb3 {[%clk 0:04:17.2]} 14... Nxd4 {[%clk 0:04:34.8]}
15. cxd4 {[%clk 0:04:16.4]} 15... Rhe8 {[%clk 0:04:29.4]} 16. Qa5 {[%clk
0:04:12.1]} 16... Kb7 {[%clk 0:04:26.8]} 17. d5 {[%clk 0:04:06.9]} 17... Bf5
{[%clk 0:04:23.9]} 18. a4 {[%clk 0:04:03.2]} 18... Re4 {[%clk 0:04:21.8]} 19.
Be3 {[%clk 0:03:56.8]} 19... bxa4 {[%clk 0:04:19.8]} 20. Ba2 {[%clk 0:03:44.9]}
20... Qb5 {[%clk 0:04:18.3]} 21. Qxb5+ {[%clk 0:03:33.3]} 21... axb5 {[%clk
0:04:18.2]} 22. Bb1 {[%clk 0:03:27.4]} 22... Rc4 {[%clk 0:04:15.4]} 23. c3
{[%clk 0:03:25.9]} 23... Bxb1 {[%clk 0:04:11.9]} 24. Kxb1 {[%clk 0:03:25.1]}
24... b4 {[%clk 0:04:11.4]} 25. Bd4 {[%clk 0:03:21]} 25... Bxd4 {[%clk
0:04:09.1]} 26. Rxd4 {[%clk 0:03:19]} 26... Rxd4 {[%clk 0:04:08.5]} 27. cxd4
{[%clk 0:03:18.9]} 27... Re8 {[%clk 0:04:07.7]} 28. Rc1 {[%clk 0:03:12.4]} 28...
Re2 {[%clk 0:04:06.3]} 29. Rc2 {[%clk 0:03:10]} 29... Re1+ {[%clk 0:04:05.2]}
30. Rc1 {[%clk 0:03:07.7]} 30... Rxc1+ {[%clk 0:04:04.7]} 31. Kxc1 {[%clk
0:03:06.6]} 31... Kb6 {[%clk 0:04:04.2]} 32. Kc2 {[%clk 0:03:05.6]} 32... Kb5
{[%clk 0:04:03.5]} 33. Kd3 {[%clk 0:03:00.9]} 33... a3 {[%clk 0:04:02.6]} 34.
bxa3 {[%clk 0:02:59.1]} 34... bxa3 {[%clk 0:04:02.5]} 35. Kc3 {[%clk 0:02:58.5]}
35... a2 {[%clk 0:04:01.8]} 36. Kb2 {[%clk 0:02:57.6]} 36... Kc4 {[%clk
0:04:01.4]} 0-1

[Event "Live Chess"]
[Site "Chess.com"]
[Date "2024.06.01"]
[Round "-"]
[White "resipsa6"]
[Black "raimundklein"]
[Result "1/2-1/2"]
[WhiteElo "2040"]
[BlackElo "1591"]
[TimeControl "300"]
[EndTime "9:37:32 PDT"]
[Termination "Game drawn - insufficient material"]

1. e4 {[%clk 0:04:59.3]} 1... c6 {[%clk 0:04:58.7]} 2. e5 {[%clk 0:04:57.8]}
2... d5 {[%clk 0:04:45.4]} 3. exd6 {[%clk 0:04:56.9]} 3... exd6 {[%clk
0:04:37.9]} 4. d4 {[%clk 0:04:56.3]} 4... d5 {[%clk 0:04:36]} 5. Nf3 {[%clk
0:04:55.4]} 5... Bg4 {[%clk 0:04:34.1]} 6. Be2 {[%clk 0:04:54.5]} 6... Nf6
{[%clk 0:04:32.4]} 7. O-O {[%clk 0:04:54]} 7... Bd6 {[%clk 0:04:29.7]} 8. Ne5
{[%clk 0:04:52.4]} 8... Bxe2 {[%clk 0:04:24.9]} 9. Qxe2 {[%clk 0:04:51.3]} 9...
O-O {[%clk 0:04:24.5]} 10. c3 {[%clk 0:04:47.6]} 10... Re8 {[%clk 0:04:22.6]}
11. Re1 {[%clk 0:04:42.6]} 11... Nbd7 {[%clk 0:04:20.2]} 12. Bf4 {[%clk
0:04:40.2]} 12... Qc7 {[%clk 0:04:15.1]} 13. Nd2 {[%clk 0:04:39]} 13... Nxe5
{[%clk 0:03:50.2]} 14. dxe5 {[%clk 0:04:21.9]} 14... Bc5 {[%clk 0:03:46.8]} 15.
Nf3 {[%clk 0:04:16.7]} 15... Nh5 {[%clk 0:03:42.1]} 16. Bg3 {[%clk 0:04:12.6]}
16... Nxg3 {[%clk 0:03:40.3]} 17. hxg3 {[%clk 0:04:12.5]} 17... Re7 {[%clk
0:03:35.7]} 18. Qd3 {[%clk 0:04:10]} 18... Rae8 {[%clk 0:03:30.1]} 19. b4 {[%clk
0:04:06.2]} 19... Bb6 {[%clk 0:03:27.1]} 20. a4 {[%clk 0:04:05.6]} 20... a6
{[%clk 0:03:25.7]} 21. Rad1 {[%clk 0:03:54.7]} 21... Ba7 {[%clk 0:03:09.9]} 22.
Kf1 {[%clk 0:03:53.8]} 22... Qb6 {[%clk 0:03:07.5]} 23. Qe3 {[%clk 0:03:44.3]}
23... Qxe3 {[%clk 0:03:03.2]} 24. fxe3 {[%clk 0:03:43.5]} 24... Bb8 {[%clk
0:03:01.7]} 25. e4 {[%clk 0:03:40.3]} 25... Bxe5 {[%clk 0:02:58.5]} 26. exd5
{[%clk 0:03:39.4]} 26... cxd5 {[%clk 0:02:57.2]} 27. Rxd5 {[%clk 0:03:35.2]}
27... f6 {[%clk 0:02:52.1]} 28. Nxe5 {[%clk 0:03:33]} 28... fxe5 {[%clk
0:02:50.7]} 29. Red1 {[%clk 0:03:29.6]} 29... Kf7 {[%clk 0:02:48.3]} 30. Ke2
{[%clk 0:03:28.3]} 30... Rc8 {[%clk 0:02:38.5]} 31. R1d3 {[%clk 0:03:25.2]}
31... e4 {[%clk 0:02:28.1]} 32. Re3 {[%clk 0:03:23.9]} 32... Rc4 {[%clk
0:02:22.8]} 33. Rf5+ {[%clk 0:03:20.1]} 33... Ke6 {[%clk 0:02:20.2]} 34. Rf4
{[%clk 0:03:16.9]} 34... Kd5 {[%clk 0:02:19.2]} 35. Rf5+ {[%clk 0:03:14.5]}
35... Kc6 {[%clk 0:02:16.1]} 36. Kd2 {[%clk 0:03:09.6]} 36... g6 {[%clk
0:02:08.9]} 37. Rf4 {[%clk 0:03:08.4]} 37... Kd5 {[%clk 0:02:07.3]} 38. Kc2
{[%clk 0:03:06]} 38... Ke5 {[%clk 0:01:50.7]} 39. Rf2 {[%clk 0:02:53.4]} 39...
Rec7 {[%clk 0:01:44.5]} 40. Kb3 {[%clk 0:02:51.9]} 40... b5 {[%clk 0:01:42]} 41.
a5 {[%clk 0:02:50]} 41... Rd7 {[%clk 0:01:34.2]} 42. Kc2 {[%clk 0:02:44.5]}
42... Rdc7 {[%clk 0:01:31.7]} 43. Rf8 {[%clk 0:02:35.4]} 43... Rxb4 {[%clk
0:01:27.9]} 44. Re8+ {[%clk 0:02:32.9]} 44... Kf6 {[%clk 0:01:26.4]} 45. R8xe4
{[%clk 0:02:29.4]} 45... Rbc4 {[%clk 0:01:25.1]} 46. Rf3+ {[%clk 0:02:25.5]}
46... Kg7 {[%clk 0:01:23.1]} 47. Re6 {[%clk 0:02:23.6]} 47... R4c6 {[%clk
0:01:20.5]} 48. Rxc6 {[%clk 0:02:21.1]} 48... Rxc6 {[%clk 0:01:20.4]} 49. Kb3
{[%clk 0:02:20.4]} 49... g5 {[%clk 0:01:18.4]} 50. Rd3 {[%clk 0:02:16.8]} 50...
Kg6 {[%clk 0:01:15.4]} 51. g4 {[%clk 0:02:14.3]} 51... h5 {[%clk 0:01:11.8]} 52.
gxh5+ {[%clk 0:02:13.3]} 52... Kxh5 {[%clk 0:01:11.7]} 53. Rd4 {[%clk
0:02:08.9]} 53... g4 {[%clk 0:01:10.1]} 54. g3 {[%clk 0:02:07.2]} 54... Kg5
{[%clk 0:01:08.4]} 55. Rd5+ {[%clk 0:02:05.9]} 55... Kg6 {[%clk 0:01:06.7]} 56.
Rd4 {[%clk 0:02:02.3]} 56... Kg5 {[%clk 0:01:04.8]} 57. c4 {[%clk 0:02:01.1]}
57... bxc4+ {[%clk 0:01:02.4]} 58. Rxc4 {[%clk 0:02:00]} 58... Rf6 {[%clk
0:01:00.3]} 59. Rc5+ {[%clk 0:01:57.5]} 59... Rf5 {[%clk 0:00:54.4]} 60. Rxf5+
{[%clk 0:01:56.1]} 60... Kxf5 {[%clk 0:00:54.3]} 61. Kc4 {[%clk 0:01:56]} 61...
Ke4 {[%clk 0:00:53.5]} 62. Kc5 {[%clk 0:01:55.5]} 62... Kf3 {[%clk 0:00:52.7]}
63. Kb6 {[%clk 0:01:55.2]} 63... Kxg3 {[%clk 0:00:52.1]} 64. Kxa6 {[%clk
0:01:54.9]} 64... Kh2 {[%clk 0:00:50.1]} 65. Kb7 {[%clk 0:01:53]} 65... g3
{[%clk 0:00:49.5]} 66. a6 {[%clk 0:01:52.5]} 66... g2 {[%clk 0:00:48.9]} 67. a7
{[%clk 0:01:52.1]} 67... g1=Q {[%clk 0:00:47.8]} 68. a8=Q {[%clk 0:01:51.2]}
68... Qg2+ {[%clk 0:00:47]} 69. Ka7 {[%clk 0:01:49.6]} 69... Qxa8+ {[%clk
0:00:45.7]} 70. Kxa8 {[%clk 0:01:48.9]} 1/2-1/2

[Event "Live Chess"]
[Site "Chess.com"]
[Date "2024.06.01"]
[Round "-"]
[White "PureDashingOctopus"]
[Black "MaximKhimchenko"]
[Result "0-1"]
[WhiteElo "2214"]
[BlackElo "1801"]
[TimeControl "300"]
[EndTime "9:37:38 PDT"]
[Termination "MaximKhimchenko won by resignation"]

1. e4 {[%clk 0:04:57.7]} 1... c5 {[%clk 0:04:54.1]} 2. Nc3 {[%clk 0:04:56.2]}
2... d6 {[%clk 0:04:51.3]} 3. d4 {[%clk 0:04:54.8]} 3... cxd4 {[%clk 0:04:48.5]}
4. Qxd4 {[%clk 0:04:54.7]} 4... Nf6 {[%clk 0:04:47.7]} 5. Be3 {[%clk 0:04:52.5]}
5... Nc6 {[%clk 0:04:46.5]} 6. Qd2 {[%clk 0:04:47.3]} 6... g6 {[%clk 0:04:45.6]}
7. O-O-O {[%clk 0:04:45]} 7... Bg7 {[%clk 0:04:44.7]} 8. f3 {[%clk 0:04:44.6]}
8... O-O {[%clk 0:04:43.8]} 9. g4 {[%clk 0:04:42]} 9... Be6 {[%clk 0:04:42.5]}
10. Nge2 {[%clk 0:04:39.6]} 10... Rc8 {[%clk 0:04:41.4]} 11. Nf4 {[%clk
0:04:37.8]} 11... Nd7 {[%clk 0:04:36.8]} 12. Nxe6 {[%clk 0:04:32.9]} 12... fxe6
{[%clk 0:04:36.7]} 13. Bc4 {[%clk 0:04:31.9]} 13... Qa5 {[%clk 0:04:31.7]} 14.
Bxe6+ {[%clk 0:04:30.1]} 14... Kh8 {[%clk 0:04:30.1]} 15. Bxd7 {[%clk
0:04:29.7]} 15... Nb4 {[%clk 0:04:25.7]} 16. Bxc8 {[%clk 0:04:07.9]} 16... Rxc8
{[%clk 0:04:16]} 17. Bd4 {[%clk 0:04:00.6]} 17... e5 {[%clk 0:04:08.9]} 18. Be3
{[%clk 0:03:58.5]} 18... Rxc3 {[%clk 0:04:02.1]} 19. bxc3 {[%clk 0:03:30.7]}
19... Qa3+ {[%clk 0:03:56.7]} 20. Kb1 {[%clk 0:03:18.4]} 20... Qxa2+ {[%clk
0:03:56.6]} 0-1